fUSD/lending_fUSD_20260622
["ID","MTS","AMOUNT","RATE_DAILY","PERIOD"]
[426089646,1782142240000,-150.0,0.00013667,2]
[426089675,1782142241000,-269.73336981,0.00013667,2]
[426089690,1782142241000,-309.0,0.00013667,2]
[426089686,1782142241000,-316.0,0.00013667,2]
[426089683,1782142241000,-313.0,0.00013667,2]
[426089688,1782142241000,-310.0,0.00013667,2]
[426089677,1782142241000,-500.0,0.00013667,2]
[426089671,1782142241000,-321.0,0.00013667,2]
[426089681,1782142241000,-311.0,0.00013667,2]
[426089656,1782142241000,-152.0,0.00013667,2]
[426089669,1782142241000,-317.0,0.00013667,2]
[426089659,1782142241000,-311.0,0.00013667,2]
[426089661,1782142241000,-151.0,0.00013667,2]
[426089657,1782142241000,-318.0,0.00013667,2]
[426089655,1782142241000,-313.0,0.00013667,2]
[426089663,1782142241000,-318.0,0.00013667,2]
[426089667,1782142241000,-150.0,0.00013667,2]
[426089665,1782142241000,-309.0,0.00013667,2]
[426089673,1782142241000,-312.0,0.00013667,2]
[426089692,1782142241000,-320.0,0.00013667,2]
[426089679,1782142241000,-311.0,0.00013667,2]
[426089695,1782142241000,-150.0,0.00013667,2]
[426089722,1782142241000,-9999.99,0.00013668,2]
[426089723,1782142241000,-13389.74302539,0.00013668,2]
[426089719,1782142241000,-999.99,0.00013668,2]
[426089718,1782142241000,-7864.26,0.00013668,2]
[426089721,1782142241000,-150.99,0.00013668,2]
[426089720,1782142241000,-4999.99,0.00013668,2]
[426089713,1782142241000,-315.0,0.00013668,2]
[426089717,1782142241000,-9999.99,0.00013668,2]
[426089716,1782142241000,-318.0,0.00013668,2]
[426089693,1782142241000,-312.0,0.00013667,2]
[426089711,1782142241000,-151.0,0.00013668,2]
[426089707,1782142241000,-310.0,0.00013668,2]
[426089709,1782142241000,-318.0,0.00013668,2]
[426089705,1782142241000,-309.0,0.00013668,2]
[426089701,1782142241000,-319.0,0.00013668,2]
[426089703,1782142241000,-321.0,0.00013668,2]
[426089699,1782142241000,-310.0,0.00013668,2]
[426089697,1782142241000,-151.0,0.00013667,2]
[426089715,1782142241000,-311.0,0.00013668,2]
[426089729,1782142243000,-204.91500402,0.00013667,2]
[426089731,1782142243000,-393.4912718,0.00013667,2]
[426089730,1782142243000,-500.0,0.00013667,2]
[426089732,1782142243000,-386.957077,0.00013667,2]
[426089734,1782142243000,-500.0,0.00013667,2]
[426089735,1782142243000,-500.0,0.00013667,2]
[426089733,1782142243000,-500.0,0.00013667,2]
[426089739,1782142243000,-470.86353555,0.00013667,2]
[426089738,1782142243000,-386.62509265,0.00013667,2]
[426089736,1782142243000,-500.0,0.00013667,2]
[426089737,1782142243000,-500.0,0.00013667,2]
[426089740,1782142243000,-151.0,0.00013667,2]
[426089741,1782142243000,-5543.45851898,0.00013668,2]
[426089742,1782142243000,-3008.27729951,0.00013668,2]
[426089743,1782142243000,-432.62323108,0.00013668,2]
[426089773,1782142246000,-1169.1269172,0.00013668,2]
[426089779,1782142267000,-310.0,0.00013667,2]
[426089780,1782142284000,-314.0,0.00013569,2]
[426089781,1782142321000,-566.20248766,0.00013569,2]
[426089785,1782142338000,-151.0,0.00012637,2]
[426089786,1782142338000,-113.20248766,0.00013568,2]
[426089784,1782142338000,-151.0,0.00012637,2]
[426089783,1782142338000,-151.0,0.00012637,2]
[426089787,1782142368000,-452.81493853,0.00013568,2]
[426089789,1782142372000,-216.35787048,0.00013569,2]
[426089788,1782142372000,-77.08094089,0.00013568,2]
[426089790,1782142372000,-159.37612716,0.00013569,2]
[426089791,1782142391000,-219.06,0.00013164,2]
[426089792,1782142442000,-150.0,0.00013164,2]
[426089793,1782142495000,-150.0,0.00013172,2]
[426089794,1782142549000,-267.55,0.00012543,2]
[426089795,1782142602000,-190.46,0.00012525,2]
[426089796,1782142655000,-154.77,0.00012547,2]
[426089797,1782142841000,-152.74,0.00012508,2]
[426089798,1782142895000,-166.66,0.00011847,2]
[426089799,1782142908000,166.80503954,0.00012,8]
[426089800,1782142948000,-166.66,0.00012096,2]
[426089801,1782142949000,-250.0,0.00012221,2]
[426089802,1782142949000,-166.66,0.00012346,2]
[426089803,1782142949000,-166.66,0.00012595,2]
[426089842,1782142950000,-313.0,0.00013272,2]
[426089821,1782142950000,-216.35787048,0.00013194,2]
[426089819,1782142950000,-314.0,0.0001319,2]
[426089818,1782142950000,-318.0,0.0001319,2]
[426089820,1782142950000,-317.0,0.0001319,2]
[426089817,1782142950000,-310.0,0.00013185,2]
[426089815,1782142950000,-317.0,0.00013182,2]
[426089816,1782142950000,-319.0,0.00013182,2]
[426089822,1782142950000,-160.50418059,0.00013194,2]
[426089813,1782142950000,-9796.54,0.00013178,2]
[426089811,1782142950000,-151.0,0.00013172,2]
[426089809,1782142950000,-151.0,0.00013172,2]
[426089810,1782142950000,-151.0,0.00013172,2]
[426089808,1782142950000,-153.0,0.00013172,2]
[426089806,1782142950000,-166.66,0.00013094,2]
[426089807,1782142950000,-153.0,0.00013172,2]
[426089805,1782142950000,-250.0,0.00013032,2]
[426089804,1782142950000,-166.66,0.00012845,2]
[426089812,1782142950000,-151.0,0.00013173,2]
[426089823,1782142950000,-150.0,0.00013194,2]
[426089814,1782142950000,-152.0,0.00013178,2]
[426089827,1782142950000,-150.99,0.00013195,2]
[426089844,1782142950000,-3052.553,0.00013298,2]
[426089824,1782142950000,-151.0,0.00013195,2]
[426089843,1782142950000,-317.0,0.00013272,2]
[426089838,1782142950000,-9999.99,0.00013233,2]
[426089840,1782142950000,-315.0,0.00013233,2]
[426089837,1782142950000,-24306.32,0.00013233,2]
[426089839,1782142950000,-310.0,0.00013233,2]
[426089835,1782142950000,-320.63756485,0.00013232,2]
[426089836,1782142950000,-500.0,0.00013232,2]
[426089841,1782142950000,-317.0,0.00013255,2]
[426089833,1782142950000,-379.60447488,0.00013232,2]
[426089832,1782142950000,-500.0,0.00013232,2]
[426089831,1782142950000,-198.64568097,0.00013232,2]
[426089829,1782142950000,-275.44389026,0.00013232,2]
[426089830,1782142950000,-500.0,0.00013232,2]
[426089828,1782142950000,-270.8699539,0.00013232,2]
[426089826,1782142950000,-19999.99,0.00013195,2]
[426089825,1782142950000,-8182.78,0.00013195,2]
[426089834,1782142950000,-500.0,0.00013232,2]
[426089859,1782142951000,-2304.6492,0.00013469,2]
[426089855,1782142951000,-461.26606394,0.00013469,2]
[426089856,1782142951000,-191.43790238,0.00013469,2]
[426089854,1782142951000,-428.73224472,0.00013469,2]
[426089851,1782142951000,-868.64918088,0.00013469,2]
[426089853,1782142951000,-5758.46065053,0.00013469,2]
[426089848,1782142951000,-300.0,0.00013306,2]
[426089849,1782142951000,-250.0,0.00013306,2]
[426089850,1782142951000,-150.0,0.00013345,2]
[426089847,1782142951000,-500.0,0.00013306,2]
[426089861,1782142951000,-1759.1498,0.00013469,2]
[426089846,1782142951000,-150.0,0.00013303,2]
[426089845,1782142951000,-205.113,0.00013298,2]
[426089852,1782142951000,-1161.24488873,0.00013469,2]
[426089857,1782142951000,-12396.29780452,0.00013469,2]
[426089873,1782142951000,-319.0,0.00013569,2]
[426089860,1782142951000,-17784.9894,0.00013469,2]
[426089862,1782142951000,-2500.0,0.00013469,2]
[426089864,1782142951000,-6566.0,0.00013534,2]
[426089863,1782142951000,-314.0,0.00013526,2]
[426089865,1782142951000,-10000.0,0.00013536,2]
[426089867,1782142951000,-151.0,0.00013568,2]
[426089866,1782142951000,-309.0,0.00013568,2]
[426089868,1782142951000,-314.0,0.00013568,2]
[426089870,1782142951000,-313.0,0.00013568,2]
[426089869,1782142951000,-320.0,0.00013568,2]
[426089871,1782142951000,-152.0,0.00013568,2]
[426089872,1782142951000,-163.79,0.00013568,2]
[426089875,1782142951000,-72289.35324837,0.00013569,2]
[426089874,1782142951000,-311.0,0.00013569,2]
[426089858,1782142951000,-2000.0,0.00013469,2]
[426089876,1782143002000,-500.0,0.00013469,2]
[426089877,1782143017000,-500.0,0.00013233,2]
[426089878,1782143033000,-69.70339284,0.00013233,2]
[426089879,1782143035000,5000.0,0.0002,30]
[426089880,1782143084000,-160.46,0.00012838,2]
[426089881,1782143137000,-219.06,0.00012665,2]
[426089882,1782143190000,-150.0,0.00012945,2]
[426089883,1782143244000,-191.9727859,0.00012945,2]
[426089892,1782143432000,-500.0,0.00013094,2]
[426089887,1782143432000,-150.0,0.00012945,2]
[426089891,1782143432000,-424.4462954,0.00013094,2]
[426089890,1782143432000,-774.16325914,0.00013033,2]
[426089889,1782143432000,-4444.95950498,0.00013033,2]
[426089894,1782143432000,-465.72313242,0.00013094,2]
[426089898,1782143432000,-1254.41808677,0.00013095,2]
[426089893,1782143432000,-192.81072318,0.00013094,2]
[426089895,1782143432000,-500.0,0.00013094,2]
[426089896,1782143432000,-150.0,0.00013094,2]
[426089897,1782143432000,-7698.1222461,0.00013095,2]
[426089899,1782143432000,-694.6617505,0.00013095,2]
[426089888,1782143432000,-5038.65306924,0.00013033,2]
[426089941,1782143438000,-1083.2618,0.00013536,2]
[426089930,1782143438000,-191.43790236,0.00013368,2]
[426089926,1782143438000,-216.35787048,0.00013236,2]
[426089927,1782143438000,-285.82149648,0.00013269,2]
[426089929,1782143438000,-3188.77658452,0.00013368,2]
[426089924,1782143438000,-2031.91172334,0.00013233,2]
[426089925,1782143438000,-10523.9590447,0.00013233,2]
[426089921,1782143438000,-2490352.79791663,0.00013095,2]
[426089923,1782143438000,-151.0,0.00013233,2]
[426089931,1782143438000,-150.14,0.00013369,2]
[426089928,1782143438000,-7625.9,0.00013269,2]
[426089934,1782143438000,-189.60896773,0.00013468,2]
[426089922,1782143438000,-11156.66802414,0.00013133,2]
[426089932,1782143438000,-1500000.0,0.00013369,2]
[426089936,1782143438000,-2000.0,0.00013469,2]
[426089945,1782143438000,-319.0,0.00013569,2]
[426089944,1782143438000,-151.0,0.00013569,2]
[426089943,1782143438000,-309.0,0.00013569,2]
[426089938,1782143438000,-1509.8046181,0.00013496,2]
[426089946,1782143438000,-315.0,0.00013569,2]
[426089939,1782143438000,-6144.5948582,0.00013497,2]
[426089940,1782143438000,-73869.5342807,0.00013497,2]
[426089933,1782143438000,-4444.95950493,0.00013452,2]
[426089937,1782143438000,-2500.0,0.00013469,2]
[426089942,1782143438000,-319.0,0.00013569,2]
[426089935,1782143438000,-33318.9848,0.00013469,2]
[426090014,1782143439000,-319.0,0.00013668,2]
[426089995,1782143439000,-309.0,0.00013668,2]
[426089999,1782143439000,-315.0,0.00013668,2]
[426090003,1782143439000,-151.0,0.00013668,2]
[426090005,1782143439000,-314.0,0.00013668,2]
[426090001,1782143439000,-319.0,0.00013668,2]
[426090008,1782143439000,-319.0,0.00013668,2]
[426090020,1782143439000,-310.0,0.00013668,2]
[426090022,1782143439000,-151.0,0.00013668,2]
[426090010,1782143439000,-320.0,0.00013668,2]
[426089989,1782143439000,-315.0,0.00013668,2]
[426090012,1782143439000,-311.0,0.00013668,2]
[426090036,1782143439000,-150.0,0.00013669,2]
[426090016,1782143439000,-320.0,0.00013668,2]
[426090026,1782143439000,-150.0,0.00013669,2]
[426090038,1782143439000,-152.0,0.00013669,2]
[426090028,1782143439000,-151.0,0.00013669,2]
[426089993,1782143439000,-315.0,0.00013668,2]
[426090032,1782143439000,-150.0,0.00013669,2]
[426090030,1782143439000,-152.0,0.00013669,2]
[426090024,1782143439000,-316.0,0.00013669,2]
[426090043,1782143439000,-151.0,0.00013669,2]
[426090034,1782143439000,-150.0,0.00013669,2]
[426090039,1782143439000,-151.0,0.00013669,2]
[426090041,1782143439000,-151.0,0.00013669,2]
[426090040,1782143439000,-150.0,0.00013669,2]
[426090018,1782143439000,-310.0,0.00013668,2]
[426089997,1782143439000,-153.0,0.00013668,2]
[426089983,1782143439000,-200.0,0.00013668,2]
[426089979,1782143439000,-22514.4996952,0.00013668,2]
[426090045,1782143439000,-151.0,0.00013669,2]
[426089953,1782143439000,-160.0,0.00013578,2]
[426089954,1782143439000,-154.77,0.00013592,2]
[426089950,1782143439000,-321.0,0.00013569,2]
[426089948,1782143439000,-312.0,0.00013569,2]
[426089949,1782143439000,-317.0,0.00013569,2]
[426089952,1782143439000,-312.0,0.00013569,2]
[426089947,1782143439000,-150.0,0.00013569,2]
[426089951,1782143439000,-151.0,0.00013569,2]
[426089955,1782143439000,-504626.4030483,0.00013636,2]
[426089959,1782143439000,-314.0,0.00013667,2]
[426089957,1782143439000,-150.0,0.00013664,2]
[426089991,1782143439000,-151.0,0.00013668,2]
[426089958,1782143439000,-270.6,0.00013667,2]
[426089971,1782143439000,-320.0,0.00013668,2]
[426089962,1782143439000,-309.0,0.00013667,2]
[426089973,1782143439000,-321.0,0.00013668,2]
[426089956,1782143439000,-500.0,0.00013655,2]
[426089965,1782143439000,-319.0,0.00013667,2]
[426089967,1782143439000,-152.0,0.00013667,2]
[426089969,1782143439000,-151.0,0.00013667,2]
[426089977,1782143439000,-317.0,0.00013668,2]
[426089975,1782143439000,-316.0,0.00013668,2]
[426089987,1782143439000,-151.0,0.00013668,2]
[426089981,1782143439000,-200.0,0.00013668,2]
[426089985,1782143439000,-321.0,0.00013668,2]
[426089961,1782143439000,-151.0,0.00013667,2]
[426090050,1782143439000,-152.0,0.00013669,2]
[426090063,1782143439000,-316.0,0.00013669,2]
[426090055,1782143439000,-151.0,0.00013669,2]
[426090115,1782143439000,-500.0,0.00013698,2]
[426090119,1782143439000,-500.0,0.00013698,2]
[426090123,1782143439000,-500.0,0.00013698,2]
[426090117,1782143439000,-500.0,0.00013698,2]
[426090121,1782143439000,-500.0,0.00013698,2]
[426090125,1782143439000,-500.0,0.00013698,2]
[426090131,1782143439000,-500.0,0.00013698,2]
[426090127,1782143439000,-500.0,0.00013698,2]
[426090135,1782143439000,-231.32,0.000137,7]
[426090129,1782143439000,-500.0,0.00013698,2]
[426090137,1782143439000,-558.41,0.000137,2]
[426090139,1782143439000,-11156.66802405,0.00013707,2]
[426090133,1782143439000,-200.0,0.00013699,2]
[426090141,1782143439000,-670.38470161,0.00013724,2]
[426090152,1782143439000,-4444.95950493,0.00013872,2]
[426090153,1782143439000,-200.0,0.00013931,2]
[426090158,1782143439000,-200.0,0.00013943,2]
[426090145,1782143439000,-3121.00059605,0.00013724,2]
[426090156,1782143439000,-200.0,0.00013931,2]
[426090143,1782143439000,-1769.15583407,0.00013724,2]
[426090148,1782143439000,-200.0,0.00013805,2]
[426090149,1782143439000,-200.0,0.00013805,2]
[426090052,1782143439000,-150.0,0.00013669,2]
[426090160,1782143439000,-200.0,0.00013943,2]
[426090164,1782143439000,-200.0,0.00014082,2]
[426090168,1782143439000,-255.0,0.00014207,2]
[426090166,1782143439000,-200.0,0.00014082,2]
[426090113,1782143439000,-500.0,0.00013698,2]
[426090108,1782143439000,-500.0,0.00013698,2]
[426090162,1782143439000,-250.0,0.00014,2]
[426090098,1782143439000,-504.0329958,0.00013698,2]
[426090104,1782143439000,-500.0,0.00013698,2]
[426090046,1782143439000,-152.0,0.00013669,2]
[426090056,1782143439000,-314.0,0.00013669,2]
[426090058,1782143439000,-151.0,0.00013669,2]
[426090060,1782143439000,-313.0,0.00013669,2]
[426090065,1782143439000,-151.0,0.00013669,2]
[426090067,1782143439000,-313.0,0.00013669,2]
[426090079,1782143439000,-151.0,0.00013669,2]
[426090069,1782143439000,-313.0,0.00013669,2]
[426090085,1782143439000,-151.0,0.00013669,2]
[426090081,1782143439000,-320.0,0.00013669,2]
[426090083,1782143439000,-321.0,0.00013669,2]
[426090087,1782143439000,-151.0,0.00013669,2]
[426090048,1782143439000,-151.0,0.00013669,2]
[426090089,1782143439000,-153.0,0.00013669,2]
[426090071,1782143439000,-317.0,0.00013669,2]
[426090102,1782143439000,-500.0,0.00013698,2]
[426090097,1782143439000,-209.65886163,0.00013698,2]
[426090095,1782143439000,-405.0,0.00013698,2]
[426090093,1782143439000,-160.0,0.00013682,2]
[426090106,1782143439000,-500.0,0.00013698,2]
[426090091,1782143439000,-152.0,0.00013669,2]
[426090075,1782143439000,-314.0,0.00013669,2]
[426090111,1782143439000,-500.0,0.00013698,2]
[426090073,1782143439000,-152.0,0.00013669,2]
[426090100,1782143439000,-500.0,0.00013698,2]
[426090077,1782143439000,-321.0,0.00013669,2]
[426090239,1782143440000,-4444.95950493,0.00014291,2]
[426090245,1782143440000,-150.0,0.00014384,2]
[426090249,1782143440000,-500.0,0.00014404,2]
[426090260,1782143440000,-181.85,0.00015068,7]
[426090250,1782143440000,-275.22123696,0.00014404,2]
[426090242,1782143440000,-150.0,0.00014384,2]
[426090247,1782143440000,-500.0,0.00014404,2]
[426090254,1782143440000,-154.77,0.00014638,2]
[426090252,1782143440000,-160.47,0.00014552,2]
[426090262,1782143440000,-150.0,0.00015068,2]
[426090256,1782143440000,-4444.95950493,0.00014711,2]
[426090281,1782143440000,-252.0,0.0001589,2]
[426090264,1782143440000,-900.0,0.00015068,2]
[426090268,1782143440000,-5038.65306919,0.00015158,2]
[426090266,1782143440000,-4444.95950493,0.0001513,2]
[426090279,1782143440000,-162.36,0.00015717,2]
[426090272,1782143440000,-11156.66802405,0.00015429,2]
[426090275,1782143440000,-4444.95950493,0.0001555,2]
[426090270,1782143440000,-433.0,0.00015411,2]
[426090283,1782143440000,-4444.95950493,0.00015969,2]
[426090237,1782143440000,-11156.66802405,0.00014281,2]
[426090277,1782143440000,-154.77,0.00015684,2]
[426090258,1782143440000,-11156.66802405,0.00014855,2]
[426090214,1782143440000,-256.10668052,0.0001424,2]
[426090193,1782143440000,-300.0,0.0001424,2]
[426090217,1782143440000,-150.0,0.0001424,2]
[426090287,1782143440000,-150.0,0.00016,2]
[426090172,1782143440000,-200.0,0.00014223,2]
[426090170,1782143440000,-200.0,0.00014223,2]
[426090174,1782143440000,-4668.8302369,0.00014224,2]
[426090178,1782143440000,-600.0,0.0001424,2]
[426090182,1782143440000,-600.0,0.0001424,2]
[426090180,1782143440000,-600.0,0.0001424,2]
[426090176,1782143440000,-600.0,0.0001424,2]
[426090185,1782143440000,-600.0,0.0001424,2]
[426090187,1782143440000,-300.0,0.0001424,2]
[426090220,1782143440000,-207.32889505,0.0001424,2]
[426090195,1782143440000,-300.0,0.0001424,2]
[426090198,1782143440000,-200.0,0.0001424,2]
[426090197,1782143440000,-200.0,0.0001424,2]
[426090206,1782143440000,-300.0,0.0001424,2]
[426090209,1782143440000,-300.0,0.0001424,2]
[426090212,1782143440000,-299.41371319,0.0001424,2]
[426090189,1782143440000,-300.0,0.0001424,2]
[426090202,1782143440000,-250.0,0.0001424,2]
[426090200,1782143440000,-200.0,0.0001424,2]
[426090204,1782143440000,-300.0,0.0001424,2]
[426090216,1782143440000,-161.55212059,0.0001424,2]
[426090191,1782143440000,-300.0,0.0001424,2]
[426090285,1782143440000,-300.0,0.00016,2]
[426090308,1782143440000,-4444.95950493,0.00016389,2]
[426090289,1782143440000,-151.28419525,0.00016,2]
[426090353,1782143440000,-1123.81705046,0.00016438,2]
[426090349,1782143440000,-1123.81705046,0.00016438,2]
[426090351,1782143440000,-1123.81705046,0.00016438,2]
[426090355,1782143440000,-1123.81705046,0.00016438,2]
[426090359,1782143440000,-1123.81705046,0.00016438,2]
[426090357,1782143440000,-1123.81705046,0.00016438,2]
[426090365,1782143440000,-1123.81705046,0.00016438,2]
[426090363,1782143440000,-1123.81705046,0.00016438,2]
[426090361,1782143440000,-1123.81705046,0.00016438,2]
[426090367,1782143440000,-1123.81705046,0.00016438,2]
[426090347,1782143440000,-1123.81705046,0.00016438,2]
[426090369,1782143440000,-1123.81705046,0.00016438,2]
[426090381,1782143440000,-1123.81705046,0.00016438,2]
[426090385,1782143440000,-1123.81705046,0.00016438,2]
[426090383,1782143440000,-1123.81705046,0.00016438,2]
[426090387,1782143440000,-1123.81705046,0.00016438,2]
[426090371,1782143440000,-1123.81705046,0.00016438,2]
[426090373,1782143440000,-1123.81705046,0.00016438,2]
[426090377,1782143440000,-1123.81705046,0.00016438,2]
[426090389,1782143440000,-1123.81705046,0.00016438,2]
[426090375,1782143440000,-1123.81705046,0.00016438,2]
[426090391,1782143440000,-1123.81705046,0.00016438,2]
[426090379,1782143440000,-1123.81705046,0.00016438,2]
[426090345,1782143440000,-1123.81705046,0.00016438,2]
[426090291,1782143440000,-211.14775444,0.00016,2]
[426090337,1782143440000,-1123.81705046,0.00016438,2]
[426090343,1782143440000,-1123.81705046,0.00016438,2]
[426090302,1782143440000,-868.64918083,0.00016208,2]
[426090296,1782143440000,-211.14775444,0.000161,2]
[426090300,1782143440000,-558.41,0.000162,2]
[426090304,1782143440000,-6317.091,0.00016224,2]
[426090298,1782143440000,-250.0,0.00016144,2]
[426090294,1782143440000,-11156.66802405,0.00016004,2]
[426090393,1782143440000,-1123.81705046,0.00016438,2]
[426090316,1782143440000,-1123.81705046,0.00016438,2]
[426090310,1782143440000,-500.0,0.00016437,2]
[426090312,1782143440000,-714.6,0.00016438,2]
[426090306,1782143440000,-526.69468098,0.00016348,2]
[426090333,1782143440000,-1123.81705046,0.00016438,2]
[426090321,1782143440000,-1123.81705046,0.00016438,2]
[426090329,1782143440000,-1123.81705046,0.00016438,2]
[426090322,1782143440000,-1123.81705046,0.00016438,2]
[426090335,1782143440000,-1123.81705046,0.00016438,2]
[426090339,1782143440000,-1123.81705046,0.00016438,2]
[426090341,1782143440000,-1123.81705046,0.00016438,2]
[426090324,1782143440000,-1123.81705046,0.00016438,2]
[426090318,1782143440000,-1123.81705046,0.00016438,2]
[426090331,1782143440000,-1123.81705046,0.00016438,2]
[426090326,1782143440000,-1123.81705046,0.00016438,2]
[426090314,1782143440000,-1123.81705046,0.00016438,2]
[426090474,1782143441000,-1658.84022961,0.00016438,2]
[426090466,1782143441000,-1658.84022961,0.00016438,2]
[426090464,1782143441000,-1658.84022961,0.00016438,2]
[426090460,1782143441000,-1658.84022961,0.00016438,2]
[426090450,1782143441000,-1658.84022961,0.00016438,2]
[426090458,1782143441000,-1658.84022961,0.00016438,2]
[426090456,1782143441000,-1658.84022961,0.00016438,2]
[426090454,1782143441000,-1658.84022961,0.00016438,2]
[426090468,1782143441000,-1658.84022961,0.00016438,2]
[426090462,1782143441000,-1658.84022961,0.00016438,2]
[426090470,1782143441000,-1658.84022961,0.00016438,2]
[426090498,1782143441000,-11156.66802405,0.00016578,2]
[426090472,1782143441000,-1658.84022961,0.00016438,2]
[426090478,1782143441000,-1658.84022961,0.00016438,2]
[426090480,1782143441000,-956.0,0.00016438,2]
[426090476,1782143441000,-1658.84022961,0.00016438,2]
[426090486,1782143441000,-1658.84022964,0.00016438,2]
[426090484,1782143441000,-1658.84022964,0.00016438,2]
[426090488,1782143441000,-1658.84022964,0.00016438,2]
[426090490,1782143441000,-302.96,0.00016438,2]
[426090492,1782143441000,-900.0,0.00016438,2]
[426090496,1782143441000,-170.0,0.00016574,2]
[426090452,1782143441000,-1658.84022961,0.00016438,2]
[426090494,1782143441000,-170.0,0.00016574,2]
[426090482,1782143441000,-1658.84022964,0.00016438,2]
[426090448,1782143441000,-1658.84022961,0.00016438,2]
[426090429,1782143441000,-1658.84022961,0.00016438,2]
[426090442,1782143441000,-1658.84022961,0.00016438,2]
[426090395,1782143441000,-1123.81705046,0.00016438,2]
[426090397,1782143441000,-1123.81705046,0.00016438,2]
[426090519,1782143441000,-1306.25001198,0.00016676,2]
[426090402,1782143441000,-1123.81705046,0.00016438,2]
[426090404,1782143441000,-1123.81705046,0.00016438,2]
[426090408,1782143441000,-1123.81705046,0.00016438,2]
[426090406,1782143441000,-1123.81705046,0.00016438,2]
[426090410,1782143441000,-1123.81705046,0.00016438,2]
[426090412,1782143441000,-1123.81705046,0.00016438,2]
[426090414,1782143441000,-1123.81705046,0.00016438,2]
[426090416,1782143441000,-1123.81705046,0.00016438,2]
[426090446,1782143441000,-1658.84022961,0.00016438,2]
[426090419,1782143441000,-1123.81705046,0.00016438,2]
[426090423,1782143441000,-1658.84022961,0.00016438,2]
[426090425,1782143441000,-1658.84022961,0.00016438,2]
[426090427,1782143441000,-1658.84022961,0.00016438,2]
[426090436,1782143441000,-1658.84022961,0.00016438,2]
[426090430,1782143441000,-1658.84022961,0.00016438,2]
[426090431,1782143441000,-1658.84022961,0.00016438,2]
[426090432,1782143441000,-1658.84022961,0.00016438,2]
[426090434,1782143441000,-1658.84022961,0.00016438,2]
[426090438,1782143441000,-1658.84022961,0.00016438,2]
[426090444,1782143441000,-1658.84022961,0.00016438,2]
[426090440,1782143441000,-1658.84022961,0.00016438,2]
[426090421,1782143441000,-1658.84022961,0.00016438,2]
[426090400,1782143441000,-1123.81705046,0.00016438,2]
[426090521,1782143441000,-1306.25001198,0.00016679,2]
[426090527,1782143441000,-500.0,0.00016688,2]
[426090578,1782143441000,-1306.25001198,0.00016817,2]
[426090580,1782143441000,-1306.25001198,0.00016827,2]
[426090582,1782143441000,-1306.25001198,0.00016839,2]
[426090586,1782143441000,-1306.25001198,0.00016851,2]
[426090597,1782143441000,-1306.25001198,0.000169,2]
[426090590,1782143441000,-1306.25001198,0.00016868,2]
[426090584,1782143441000,-1306.25001198,0.00016849,2]
[426090592,1782143441000,-1306.25001198,0.00016874,2]
[426090588,1782143441000,-1306.25001198,0.00016864,2]
[426090599,1782143441000,-1306.25001198,0.00016909,2]
[426090595,1782143441000,-1306.25001198,0.00016875,2]
[426090601,1782143441000,-1306.25001198,0.0001692,2]
[426090603,1782143441000,-1306.25001198,0.00016922,2]
[426090605,1782143441000,-5000.0,0.0001715,2]
[426090618,1782143441000,-400.0,0.000173,2]
[426090615,1782143441000,-5038.65306919,0.00017282,2]
[426090611,1782143441000,-4110.03471729,0.000172,2]
[426090626,1782143441000,-400.0,0.000177,2]
[426090624,1782143441000,-4110.03471729,0.000175,2]
[426090620,1782143441000,-4110.03471729,0.000173,2]
[426090613,1782143441000,-956.0,0.0001726,2]
[426090622,1782143441000,-400.0,0.000175,2]
[426090609,1782143441000,-400.0,0.000172,2]
[426090523,1782143441000,-1306.25001198,0.00016684,2]